fUSD/lending_fUSD_20250502
["ID","MTS","AMOUNT","RATE_DAILY","PERIOD"]
[359590946,1746169084044,157.29,0.0001885,2]
[359590947,1746169084634,157.29,0.00018856,2]
[359590948,1746169084714,157.29,0.00018863,2]
[359590949,1746169084789,157.29,0.00018869,2]
[359590950,1746169084899,157.29,0.00018875,2]
[359590951,1746169085117,157.29,0.00018881,2]
[359590952,1746169085320,157.29,0.00018888,2]
[359590953,1746169085553,157.29,0.00018894,2]
[359590954,1746169085725,157.29,0.000189,2]
[359590955,1746169085948,157.29,0.00018906,2]
[359590956,1746169086140,157.29,0.00018913,2]
[359590957,1746169086342,157.29,0.00018919,2]
[359590958,1746169087592,668.66,0.00016907,2]
[359590959,1746169087830,668.66,0.00019171,2]
[359590960,1746169116692,150.0,0.00019075,20]
[359590961,1746169134260,8063.92805755,0.000195,7]
[359590962,1746169134287,2836.07194245,0.000195,7]
[359590963,1746169136288,21900.0,0.000196,7]
[359590964,1746169138383,32900.0,0.000197,7]
[359590965,1746169140735,42363.92805755,0.000198,7]
[359590966,1746169140761,1536.07194245,0.000198,7]
[359590967,1746169142848,54800.0,0.000199,7]
[359590968,1746169165995,162.55921,0.0002,23]
[359590969,1746169178964,12000.0,0.000194,2]
[359590970,1746169232605,256.08,0.00018804,2]
[359590972,1746169251781,200.0,0.00032876,60]
[359590973,1746169306099,500.0,0.00032876,60]
[359590974,1746169343592,6121.6,0.00018786,2]
[359590975,1746169349231,965.0,0.00032876,60]
[359590976,1746169367059,250.0,0.00018793,7]
[359590977,1746169471545,162.55921,0.000248,34]
[359590978,1746169471625,162.55921,0.000273,39]
[359590979,1746169549734,1000.0,0.00018772,2]
[359590980,1746169643352,2700.0,0.000195,7]
[359590981,1746169645515,5500.0,0.000196,7]
[359590982,1746169645718,1000.0,0.00032877,60]
[359590983,1746169647603,8200.0,0.000197,7]
[359590984,1746169649752,11000.0,0.000198,7]
[359590985,1746169651739,700.0,0.00032877,60]
[359590986,1746169651864,13700.0,0.000199,7]
[359590988,1746169659735,1000.0,0.00032877,60]
[359590989,1746169729977,900.0,0.00032877,60]
[359590990,1746169820520,1059.756,0.00032877,60]
[359590991,1746169828137,1000.0,0.00032877,60]
[359590994,1746169831784,-736.159057,0.000196,2]
[359590995,1746169831797,-263.840943,0.000196,2]
[359590996,1746169831808,-210.6263,0.00019606,2]
[359590997,1746169831817,-200.0,0.00019628,2]
[359590998,1746169831828,-250.0,0.00019639,2]
[359591000,1746169831838,-200.0,0.00019639,2]
[359591002,1746169831847,-703.532757,0.00019683,2]
[359591003,1746169831885,-30.13280895,0.00019683,2]
[359591004,1746169831894,-270.6467,0.00019703,2]
[359591005,1746169831904,-664.59049105,0.00019705,2]
[359591006,1746169831920,-535.40950895,0.00019705,2]
[359591007,1746169831930,-300.0,0.00019705,2]
[359591008,1746169831939,-12500.0,0.00019706,2]
[359591009,1746169831949,-850.0,0.00019713,2]
[359591010,1746169831959,-6450.0487015,0.00019715,2]
[359591013,1746169831986,-6049.9512985,0.00019715,2]
[359591015,1746169831995,-12500.0,0.00019724,2]
[359591016,1746169832005,-7032.63452692,0.00019733,2]
[359591018,1746169832016,-331.14851368,0.00019733,2]
[359591019,1746169832028,-2210.41379545,0.00019733,2]
[359591021,1746169837632,-1000.0,0.00019712,2]
[359591022,1746169837642,-500.0,0.00019732,2]
[359591023,1746169837652,-298.07302448,0.00019732,2]
[359591024,1746169837663,-2925.80316395,0.00019733,2]
[359591025,1746169837672,-181.83660268,0.00019738,2]
[359591026,1746169837683,-166.0610156,0.00019738,2]
[359591027,1746169837693,-12500.0,0.00019742,2]
[359591028,1746169837702,-2877.40127627,0.0001975,2]
[359591029,1746169837746,-1268.13976335,0.0001975,2]
[359591030,1746169837758,-8354.45896038,0.0001975,2]
[359591031,1746169837767,-12500.0,0.00019759,2]
[359591032,1746169837776,-12500.0,0.00019768,2]
[359591033,1746169837786,-12500.0,0.00019777,2]
[359591034,1746169837796,-12500.0,0.00019786,2]
[359591035,1746169837805,-12500.0,0.00019794,2]
[359591036,1746169837814,-155.5769965,0.00019799,2]
[359591037,1746169837823,-12500.0,0.00019803,2]
[359591038,1746169837833,-12500.0,0.00019812,2]
[359591039,1746169837842,-1059.35,0.0001982,2]
[359591040,1746169837853,-464.61,0.0001982,2]
[359591041,1746169837862,-450.0,0.0001982,2]
[359591042,1746169837872,-766.75,0.0001982,2]
[359591043,1746169837885,-450.0,0.0001982,2]
[359591044,1746169837894,-477.50471461,0.0001982,2]
[359591045,1746169837903,-529.20675324,0.0001982,2]
[359591046,1746169837913,-450.0,0.0001982,2]
[359591047,1746169837923,-478.32781497,0.0001982,2]
[359591048,1746169837932,-450.0,0.0001982,2]
[359591049,1746169837942,-757.83,0.0001982,2]
[359591050,1746169837953,-854.67,0.0001982,2]
[359591051,1746169837963,-913.8,0.0001982,2]
[359591052,1746169837972,-561.31,0.0001982,2]
[359591053,1746169837982,-648.83,0.0001982,2]
[359591054,1746169837992,-604.85,0.0001982,2]
[359591055,1746169838001,-450.0,0.0001982,2]
[359591057,1746169838011,-931.49,0.0001982,2]
[359591059,1746169838020,-455.74,0.0001982,2]
[359591061,1746169838029,-815.24,0.0001982,2]
[359591063,1746169838038,-2078.43,0.0001982,2]
[359591065,1746169838048,-450.0,0.0001982,2]
[359591067,1746169838057,-1346.78,0.0001982,2]
[359591069,1746169838067,-450.0,0.0001982,2]
[359591071,1746169838076,-504.13,0.0001982,2]
[359591073,1746169838085,-1228.74,0.0001982,2]
[359591075,1746169838094,-450.0,0.0001982,2]
[359591077,1746169838103,-450.0,0.0001982,2]
[359591078,1746169838112,-1232.39,0.0001982,2]
[359591079,1746169838122,-575.23,0.0001982,2]
[359591080,1746169838131,-450.0,0.0001982,2]
[359591081,1746169838141,-615.86,0.0001982,2]
[359591082,1746169838150,-875.68,0.0001982,2]
[359591083,1746169838160,-450.0,0.0001982,2]
[359591084,1746169838169,-477.79,0.0001982,2]
[359591085,1746169838178,-1095.81,0.0001982,2]
[359591086,1746169838188,-450.0,0.0001982,2]
[359591087,1746169838198,-450.0,0.0001982,2]
[359591088,1746169838208,-727.89,0.0001982,2]
[359591089,1746169838218,-12500.0,0.00019821,2]
[359591090,1746169838227,-814.99,0.00019829,2]
[359591091,1746169838237,-1069.42,0.00019829,2]
[359591092,1746169838246,-557.53,0.00019829,2]
[359591093,1746169838256,-904.98,0.00019829,2]
[359591094,1746169838266,-450.0,0.00019829,2]
[359591095,1746169838276,-714.39,0.00019829,2]
[359591096,1746169838286,-846.45,0.00019829,2]
[359591097,1746169838296,-450.0,0.00019829,2]
[359591098,1746169838305,-1263.63,0.00019829,2]
[359591099,1746169838315,-1282.56,0.00019829,2]
[359591100,1746169838324,-676.29,0.00019829,2]
[359591101,1746169838333,-799.17,0.00019829,2]
[359591102,1746169838342,-450.0,0.00019829,2]
[359591103,1746169838353,-484.96,0.00019829,2]
[359591104,1746169838363,-643.89,0.00019829,2]
[359591105,1746169838372,-14284.3,0.00019829,2]
[359591106,1746169838382,-460.73,0.00019829,2]
[359591107,1746169838391,-456.07,0.00019829,2]
[359591108,1746169838401,-450.0,0.00019829,2]
[359591109,1746169838410,-1389.98,0.00019829,2]
[359591110,1746169838421,-2746.72,0.00019829,2]
[359591111,1746169838430,-450.0,0.00019829,2]
[359591112,1746169838439,-635.4,0.00019829,2]
[359591113,1746169838449,-450.0,0.00019829,2]
[359591114,1746169838458,-1050.976382,0.00019829,2]
[359591115,1746169838467,-1160.14,0.00019829,2]
[359591116,1746169838476,-450.0,0.00019829,2]
[359591117,1746169838486,-450.0,0.00019829,2]
[359591118,1746169838495,-12500.0,0.0001983,2]
[359591119,1746169838505,-377.0,0.00019836,2]
[359591120,1746169838515,-817.46,0.00019838,2]
[359591121,1746169838524,-1416.120948,0.00019838,2]
[359591122,1746169838534,-742.24,0.00019838,2]
[359591123,1746169838543,-450.0,0.00019838,2]
[359591124,1746169838554,-800.34,0.00019838,2]
[359591125,1746169838564,-2761.76,0.00019838,2]
[359591126,1746169838573,-450.0,0.00019838,2]
[359591127,1746169838583,-465.99,0.00019838,2]
[359591128,1746169838592,-5111.06,0.00019838,2]
[359591129,1746169838601,-947.19,0.00019838,2]
[359591130,1746169838611,-450.0,0.00019838,2]
[359591131,1746169838620,-2247.06,0.00019838,2]
[359591132,1746169838633,-491.97,0.00019838,2]
[359591133,1746169838643,-574.02,0.00019838,2]
[359591134,1746169838653,-586.44,0.00019838,2]
[359591135,1746169838664,-518.23,0.00019838,2]
[359591136,1746169838674,-3542.73,0.00019838,2]
[359591137,1746169838683,-725.8,0.00019838,2]
[359591138,1746169838692,-1265.27,0.00019838,2]
[359591139,1746169838701,-988.45,0.00019838,2]
[359591140,1746169838710,-450.0,0.00019838,2]
[359591141,1746169838720,-676.28,0.00019838,2]
[359591142,1746169838729,-450.0,0.00019838,2]
[359591143,1746169838738,-12500.0,0.00019838,2]
[359591144,1746169838747,-12500.0,0.00019847,2]
[359591145,1746169838757,-209.00036875,0.00019854,2]
[359591146,1746169838767,-595.68,0.00019855,2]
[359591147,1746169838776,-450.0,0.00019855,2]
[359591148,1746169838787,-450.0,0.00019855,2]
[359591149,1746169838797,-450.0,0.00019855,2]
[359591150,1746169838806,-450.0,0.00019855,2]
[359591151,1746169839062,-450.0,0.00019855,2]
[359591152,1746169839072,-450.0,0.00019855,2]
[359591153,1746169839082,-450.0,0.00019855,2]
[359591154,1746169839092,-450.0,0.00019855,2]
[359591155,1746169839102,-450.0,0.00019855,2]
[359591156,1746169839113,-450.0,0.00019855,2]
[359591157,1746169839122,-825.64,0.00019855,2]
[359591158,1746169839131,-664.39,0.00019855,2]
[359591159,1746169839140,-466.93766647,0.00019855,2]
[359591160,1746169839150,-559.5221783,0.00019855,2]
[359591161,1746169839161,-450.0,0.00019855,2]
[359591162,1746169839170,-450.0,0.00019855,2]
[359591163,1746169839180,-177.1795869,0.00019855,2]
[359591164,1746169839190,-853.81,0.00019855,2]
[359591165,1746169839200,-450.0,0.00019855,2]
[359591166,1746169839209,-450.0,0.00019855,2]
[359591167,1746169839219,-450.0,0.00019855,2]
[359591168,1746169839229,-450.0,0.00019855,2]
[359591169,1746169839239,-470.0,0.00019855,2]
[359591170,1746169839248,-771.42,0.00019855,2]
[359591171,1746169839258,-518.99099404,0.00019855,2]
[359591172,1746169839268,-450.0,0.00019855,2]
[359591173,1746169839277,-470.0,0.00019855,2]
[359591174,1746169839287,-450.0,0.00019855,2]
[359591175,1746169839297,-945.43,0.00019855,2]
[359591176,1746169839307,-450.0,0.00019855,2]
[359591177,1746169839316,-550.88153477,0.00019855,2]
[359591178,1746169839326,-513.23602094,0.00019855,2]
[359591179,1746169839335,-450.0,0.00019855,2]
[359591180,1746169839344,-472.82180918,0.00019855,2]
[359591181,1746169839354,-450.0,0.00019855,2]
[359591182,1746169839364,-473.46346792,0.00019855,2]
[359591183,1746169839374,-549.50027318,0.00019855,2]
[359591184,1746169839384,-486.06,0.00019855,2]
[359591185,1746169839394,-450.0,0.00019855,2]
[359591186,1746169839404,-526.44962448,0.00019855,2]
[359591187,1746169839413,-542.562564,0.00019855,2]
[359591188,1746169839423,-495.04,0.00019855,2]
[359591189,1746169839433,-500.0,0.00019855,2]
[359591190,1746169839443,-450.0,0.00019855,2]
[359591191,1746169839453,-250.0,0.00019855,2]
[359591192,1746169839463,-706.21,0.00019855,2]
[359591193,1746169839472,-450.0,0.00019855,2]
[359591194,1746169839482,-589.62507924,0.00019855,2]
[359591195,1746169839491,-450.0,0.00019855,2]
[359591196,1746169839501,-274.69447579,0.00019855,2]
[359591197,1746169839510,-450.0,0.00019855,2]
[359591198,1746169839520,-158.12635643,0.00019855,2]
[359591199,1746169839530,-679.14,0.00019855,2]
[359591200,1746169839539,-500.0,0.00019855,2]
[359591201,1746169839551,-787.81,0.00019855,2]
[359591202,1746169839560,-450.0,0.00019855,2]
[359591203,1746169839570,-450.0,0.00019855,2]
[359591204,1746169839581,-450.0,0.00019855,2]
[359591205,1746169839590,-450.0,0.00019855,2]
[359591206,1746169839599,-239.32776593,0.00019855,2]
[359591207,1746169839610,-297.35320756,0.00019855,2]
[359591208,1746169839619,-450.0,0.00019855,2]
[359591209,1746169839628,-177.18309793,0.00019855,2]
[359591210,1746169839638,-575.62187852,0.00019855,2]
[359591211,1746169839647,-507.28838955,0.00019855,2]
[359591212,1746169839656,-450.0,0.00019855,2]
[359591213,1746169839666,-450.0,0.00019855,2]
[359591214,1746169839676,-502.12352298,0.00019855,2]
[359591215,1746169839685,-450.0,0.00019855,2]
[359591216,1746169839695,-450.0,0.00019855,2]
[359591217,1746169839704,-828.68,0.00019855,2]
[359591219,1746169839713,-450.0,0.00019855,2]
[359591220,1746169839723,-500.0,0.00019855,2]
[359591221,1746169839733,-572.95358373,0.00019855,2]
[359591222,1746169839742,-450.0,0.00019855,2]
[359591223,1746169839752,-776.0,0.00019855,2]
[359591224,1746169839762,-514.05720528,0.00019855,2]
[359591225,1746169839771,-470.0,0.00019855,2]
[359591226,1746169839780,-502.86085126,0.00019855,2]
[359591227,1746169839790,-481.19,0.00019855,2]
[359591228,1746169839799,-450.0,0.00019855,2]
[359591229,1746169839809,-450.0,0.00019855,2]
[359591230,1746169839818,-517.94715813,0.00019855,2]
[359591231,1746169839827,-450.0,0.00019855,2]
[359591232,1746169839837,-470.0,0.00019855,2]
[359591233,1746169839846,-1040.34,0.00019855,2]
[359591234,1746169839855,-450.0,0.00019855,2]
[359591235,1746169839866,-450.0,0.00019855,2]
[359591236,1746169839877,-510.3004948,0.00019855,2]
[359591237,1746169839887,-450.0,0.00019855,2]
[359591238,1746169839896,-346.34753997,0.00019855,2]
[359591239,1746169839906,-473.37015512,0.00019855,2]
[359591240,1746169839916,-450.0,0.00019855,2]
[359591241,1746169839926,-500.0,0.00019855,2]
[359591242,1746169839937,-901.48,0.00019855,2]
[359591243,1746169839947,-188.91175319,0.00019855,2]
[359591244,1746169839960,-552.07078652,0.00019855,2]
[359591245,1746169839971,-450.0,0.00019855,2]
[359591246,1746169839980,-470.0,0.00019855,2]
[359591247,1746169839990,-813.5,0.00019855,2]
[359591248,1746169839999,-450.0,0.00019855,2]
[359591249,1746169840008,-542.08,0.00019855,2]
[359591250,1746169840019,-450.0,0.00019855,2]
[359591251,1746169840028,-450.0,0.00019855,2]
[359591252,1746169840038,-579.32,0.00019855,2]
[359591253,1746169840048,-1498.53,0.00019855,2]
[359591254,1746169840058,-450.0,0.00019855,2]
[359591255,1746169840068,-450.0,0.00019855,2]
[359591256,1746169840080,-450.0,0.00019855,2]
[359591257,1746169840092,-450.0,0.00019855,2]
[359591258,1746169840102,-450.0,0.00019855,2]
[359591259,1746169840111,-257.68004807,0.00019855,2]
[359591260,1746169840120,-450.0,0.00019855,2]
[359591261,1746169840130,-758.11,0.00019855,2]
[359591262,1746169840139,-515.97,0.00019855,2]
[359591263,1746169840149,-450.0,0.00019855,2]
[359591264,1746169840160,-450.0,0.00019855,2]
[359591265,1746169840170,-448.14685447,0.00019855,2]
[359591266,1746169840179,-450.0,0.00019855,2]
[359591267,1746169840189,-316.71372366,0.00019855,2]
[359591268,1746169840199,-450.0,0.00019855,2]
[359591269,1746169840208,-450.0,0.00019855,2]
[359591270,1746169840218,-450.0,0.00019855,2]
[359591271,1746169840227,-450.0,0.00019855,2]
[359591272,1746169840236,-450.0,0.00019855,2]
[359591273,1746169840246,-450.0,0.00019855,2]
[359591274,1746169840256,-151.99235724,0.00019855,2]
[359591275,1746169840265,-450.0,0.00019855,2]
[359591276,1746169840275,-450.0,0.00019855,2]
[359591277,1746169840286,-450.0,0.00019855,2]
[359591278,1746169840296,-450.0,0.00019855,2]
[359591279,1746169840306,-450.0,0.00019855,2]
[359591280,1746169840315,-1355.14,0.00019855,2]
[359591281,1746169840325,-450.0,0.00019855,2]
[359591282,1746169840334,-450.0,0.00019855,2]
[359591283,1746169840345,-450.0,0.00019855,2]
[359591284,1746169840354,-450.0,0.00019855,2]
[359591285,1746169840364,-450.0,0.00019855,2]
[359591286,1746169840373,-687.21,0.00019855,2]
[359591287,1746169840382,-450.0,0.00019855,2]
[359591288,1746169840392,-450.0,0.00019855,2]
[359591289,1746169840401,-450.0,0.00019855,2]
[359591290,1746169840411,-1143.16,0.00019855,2]
[359591292,1746169840421,-450.0,0.00019855,2]
[359591293,1746169840431,-994.39,0.00019855,2]
[359591295,1746169840441,-450.0,0.00019855,2]
[359591296,1746169840450,-755.87,0.00019855,2]
[359591297,1746169840460,-450.0,0.00019855,2]
[359591298,1746169840470,-450.0,0.00019855,2]
[359591299,1746169840479,-450.0,0.00019855,2]
[359591300,1746169840488,-450.0,0.00019855,2]
[359591301,1746169840497,-450.0,0.00019855,2]
[359591302,1746169840507,-450.0,0.00019855,2]
[359591303,1746169840516,-370.09115084,0.00019855,2]
[359591304,1746169840525,-450.0,0.00019855,2]
[359591305,1746169840535,-450.0,0.00019855,2]
[359591306,1746169840544,-450.0,0.00019855,2]
[359591307,1746169840555,-450.0,0.00019855,2]
[359591308,1746169840565,-644.4,0.00019855,2]
[359591309,1746169840575,-478.97,0.00019855,2]
[359591310,1746169840584,-450.0,0.00019855,2]
[359591311,1746169840594,-847.75,0.00019855,2]
[359591312,1746169840603,-1095.6,0.00019855,2]
[359591313,1746169840612,-450.0,0.00019855,2]
[359591314,1746169840621,-450.0,0.00019855,2]
[359591315,1746169840631,-1037.4,0.00019855,2]
[359591316,1746169840640,-283.69596691,0.00019855,2]
[359591317,1746169840649,-450.0,0.00019855,2]
[359591318,1746169840659,-450.0,0.00019855,2]
[359591319,1746169840668,-723.16,0.00019855,2]
[359591320,1746169840678,-255.88549319,0.00019855,2]
[359591321,1746169840688,-867.64,0.00019855,2]
[359591322,1746169840698,-855.58,0.00019855,2]
[359591323,1746169840707,-649.21,0.00019855,2]
[359591324,1746169840717,-446.35235035,0.00019855,2]
[359591325,1746169840726,-462.76,0.00019855,2]
[359591326,1746169840736,-450.0,0.00019855,2]
[359591327,1746169840745,-450.0,0.00019855,2]
[359591328,1746169840756,-450.0,0.00019855,2]
[359591329,1746169840765,-559.62,0.00019855,2]
[359591330,1746169840775,-450.0,0.00019855,2]
[359591331,1746169840784,-526.08,0.00019855,2]
[359591332,1746169840795,-986.92,0.00019855,2]
[359591333,1746169840805,-404.19177593,0.00019855,2]
[359591334,1746169840815,-420.55718536,0.00019855,2]
[359591335,1746169840825,-450.0,0.00019855,2]
[359591336,1746169840834,-450.0,0.00019855,2]
[359591337,1746169840844,-639.35,0.00019855,2]
[359591338,1746169840854,-450.0,0.00019855,2]
[359591339,1746169840864,-450.0,0.00019855,2]
[359591340,1746169840878,-450.0,0.00019855,2]
[359591341,1746169840887,-2996.31,0.00019855,2]
[359591342,1746169840897,-450.0,0.00019855,2]
[359591343,1746169840906,-450.0,0.00019855,2]
[359591344,1746169840917,-450.0,0.00019855,2]
[359591345,1746169840927,-1000.0,0.00019855,2]
[359591346,1746169840936,-468.76,0.00019855,2]
[359591347,1746169840946,-450.0,0.00019855,2]
[359591348,1746169840956,-456.94,0.00019855,2]
[359591349,1746169840966,-801.87,0.00019855,2]
[359591350,1746169840975,-644.71,0.00019855,2]
[359591351,1746169840985,-450.0,0.00019855,2]
[359591352,1746169840994,-972.42,0.00019855,2]
[359591353,1746169841004,-570.54994001,0.00019855,2]
[359591354,1746169841013,-1054.92,0.00019855,2]
[359591355,1746169841023,-231.13531784,0.00019855,2]
[359591356,1746169841032,-659.41,0.00019855,2]
[359591357,1746169841041,-450.0,0.00019855,2]
[359591358,1746169841052,-450.0,0.00019855,2]
[359591359,1746169841061,-861.98,0.00019855,2]
[359591360,1746169841071,-843.3,0.00019855,2]
[359591361,1746169841080,-450.0,0.00019855,2]
[359591362,1746169841090,-1574.14,0.00019855,2]
[359591363,1746169841099,-776.1,0.00019855,2]
[359591364,1746169841109,-1012.1,0.00019855,2]
[359591365,1746169841118,-450.0,0.00019855,2]
[359591366,1746169841128,-153.72743015,0.00019855,2]
[359591367,1746169841137,-450.0,0.00019855,2]
[359591368,1746169841147,-696.55,0.00019855,2]
[359591369,1746169841157,-450.0,0.00019855,2]
[359591370,1746169841167,-477.78,0.00019855,2]
[359591371,1746169841177,-450.0,0.00019855,2]
[359591372,1746169841187,-450.0,0.00019855,2]
[359591373,1746169841196,-467.49,0.00019855,2]
[359591374,1746169841206,-450.0,0.00019855,2]
[359591375,1746169841215,-450.0,0.00019855,2]
[359591376,1746169841224,-813.26,0.00019855,2]
[359591377,1746169841234,-450.0,0.00019855,2]
[359591378,1746169841244,-450.0,0.00019855,2]
[359591379,1746169841254,-450.0,0.00019855,2]
[359591380,1746169841263,-1217.63,0.00019855,2]
[359591381,1746169841273,-595.71,0.00019855,2]
[359591382,1746169841283,-861.58,0.00019855,2]
[359591383,1746169841293,-450.0,0.00019855,2]
[359591384,1746169841303,-450.0,0.00019855,2]
[359591385,1746169841312,-450.0,0.00019855,2]
[359591386,1746169841321,-407.93456847,0.00019855,2]
[359591387,1746169841331,-2894.2,0.00019855,2]
[359591388,1746169841341,-450.0,0.00019855,2]
[359591389,1746169841350,-450.0,0.00019855,2]
[359591390,1746169841359,-450.0,0.00019855,2]
[359591391,1746169841369,-450.0,0.00019855,2]
[359591392,1746169841378,-464.38,0.00019855,2]
[359591393,1746169841387,-450.0,0.00019855,2]
[359591394,1746169841397,-450.0,0.00019855,2]
[359591395,1746169841406,-1106.08,0.00019855,2]
[359591396,1746169841416,-450.0,0.00019855,2]
[359591397,1746169841425,-450.0,0.00019855,2]
[359591398,1746169841434,-475.76,0.00019855,2]
[359591399,1746169841443,-450.0,0.00019855,2]
[359591400,1746169841452,-450.0,0.00019855,2]
[359591401,1746169841461,-450.0,0.00019855,2]
[359591402,1746169841471,-954.48,0.00019855,2]
[359591403,1746169841480,-383.8601003,0.00019855,2]
[359591404,1746169841489,-450.0,0.00019855,2]
[359591405,1746169841499,-450.0,0.00019855,2]
[359591406,1746169841508,-450.0,0.00019855,2]
[359591407,1746169841517,-450.0,0.00019855,2]
[359591408,1746169841526,-450.0,0.00019855,2]
[359591409,1746169841536,-911.9,0.00019855,2]
[359591410,1746169841545,-450.0,0.00019855,2]
[359591411,1746169841555,-1211.97,0.00019855,2]
[359591412,1746169841564,-450.0,0.00019855,2]
[359591413,1746169841574,-505.88,0.00019855,2]
[359591414,1746169841583,-590.94,0.00019855,2]
[359591415,1746169841593,-2642.06,0.00019855,2]
[359591416,1746169841602,-450.0,0.00019855,2]
[359591417,1746169841611,-450.0,0.00019855,2]
[359591418,1746169841620,-604.44,0.00019855,2]
[359591419,1746169841630,-4213.52,0.00019855,2]
[359591420,1746169841639,-473.36,0.00019855,2]
[359591421,1746169841648,-1008.53,0.00019855,2]
[359591422,1746169841657,-450.0,0.00019855,2]
[359591423,1746169841666,-1463.34,0.00019855,2]
[359591424,1746169841675,-450.0,0.00019855,2]
[359591425,1746169841684,-450.0,0.00019855,2]
[359591426,1746169841693,-464.18,0.00019855,2]
[359591427,1746169841701,-203.23127724,0.00019855,2]
[359591428,1746169841710,-450.0,0.00019855,2]
[359591429,1746169841720,-450.0,0.00019855,2]
[359591430,1746169841729,-588.38,0.00019855,2]
[359591431,1746169841738,-450.0,0.00019855,2]
[359591432,1746169841750,-12500.0,0.00019856,2]
[359591433,1746169841759,-12500.0,0.00019865,2]
[359591434,1746169841768,-594.42177226,0.00019867,2]
[359591435,1746169841777,-12500.0,0.00019874,2]
[359591436,1746169841787,-797.0,0.0001988,2]
[359591437,1746169841796,-882.395,0.0001988,2]
[359591438,1746169841807,-1879.141,0.0001988,2]
[359591439,1746169841816,-1139.0,0.0001988,2]
[359591440,1746169841826,-12500.0,0.00019882,2]
[359591441,1746169841836,-184.48658408,0.00019883,2]
[359591442,1746169841846,-170.44898866,0.00019883,2]
[359591443,1746169841855,-2457.7269,0.00019883,2]
[359591444,1746169841866,-166.63880098,0.00019883,2]
[359591445,1746169841879,-22835.6483,0.00019883,2]
[359591446,1746169841888,-507.2784,0.00019883,2]
[359591447,1746169841899,-1014.93,0.0001989,2]
[359591448,1746169841908,-12500.0,0.00019891,2]
[359591449,1746169841918,-12500.0,0.000199,2]
[359591450,1746169841927,-207.4,0.00019953,2]
[359591451,1746169841937,-980.478,0.00019954,2]
[359591452,1746169841946,-171.44,0.00019954,2]
[359591453,1746169841956,-500.0,0.00019973,2]
[359591454,1746169841966,-450.0,0.00019982,2]
[359591455,1746169841975,-966.5,0.00019982,2]
[359591456,1746169841985,-450.0,0.00019982,2]
[359591457,1746169841994,-450.0,0.00019982,2]
[359591458,1746169842003,-866.59,0.00019982,2]
[359591459,1746169842012,-633.42,0.00019982,2]
[359591460,1746169842022,-450.0,0.00019982,2]
[359591461,1746169842031,-613.36,0.00019982,2]
[359591462,1746169842042,-1498.53,0.00019982,2]
[359591463,1746169842051,-1498.53,0.00019982,2]
[359591464,1746169842061,-618.87,0.00019982,2]
[359591465,1746169842070,-450.0,0.00019982,2]
[359591466,1746169842080,-450.0,0.00019982,2]
[359591467,1746169842089,-669.97,0.00019982,2]
[359591468,1746169842099,-450.0,0.00019982,2]
[359591469,1746169842110,-934.83,0.00019982,2]
[359591470,1746169842119,-1299.62,0.00019982,2]